DEPARTMENT FAMILY,ENTITY,DATE,EXPENSE TYPE,EXPENSE AREA,SUPPLIER,TRANSACTION NUMBER,AMOUNT,DESCRIPTION
DEPARTMENT OF HEALTH,SOUTH CENTRAL AMBULANCE NHS FOUNDATION TRUST,13/04/2023,FLEET SERVICES,OPERATIONS,SOUTH CENTRAL FLEET SERVICES LTD,2000927,27683.21,VEHICLE LEASE COSTS
DEPARTMENT OF HEALTH,SOUTH CENTRAL AMBULANCE NHS FOUNDATION TRUST,13/04/2023,FLEET SERVICES,OPERATIONS,SOUTH CENTRAL FLEET SERVICES LTD,2000927,2392.8,VEHICLE LEASE COSTS
DEPARTMENT OF HEALTH,SOUTH CENTRAL AMBULANCE NHS FOUNDATION TRUST,13/04/2023,FLEET SERVICES,OPERATIONS,SOUTH CENTRAL FLEET SERVICES LTD,2000927,7089.6,VEHICLE LEASE COSTS
DEPARTMENT OF HEALTH,SOUTH CENTRAL AMBULANCE NHS FOUNDATION TRUST,13/04/2023,FLEET SERVICES,OPERATIONS,SOUTH CENTRAL FLEET SERVICES LTD,2000927,4439.23,VEHICLE LEASE COSTS
DEPARTMENT OF HEALTH,SOUTH CENTRAL AMBULANCE NHS FOUNDATION TRUST,13/04/2023,VEHICLE LEASING,OPERATIONS,SOUTH CENTRAL FLEET SERVICES LTD,2000928,67273.37,VEHICLE LEASE COSTS
DEPARTMENT OF HEALTH,SOUTH CENTRAL AMBULANCE NHS FOUNDATION TRUST,13/04/2023,FLEET SERVICES,CLINICAL SERVICES,SOUTH CENTRAL FLEET SERVICES LTD,2004274,42166.8,VEHICLE LEASE COSTS
DEPARTMENT OF HEALTH,SOUTH CENTRAL AMBULANCE NHS FOUNDATION TRUST,06/04/2023,IT,ICT,EUROPEAN ELECTRONIQUE LTD,2018677,79809.84,DATA LINES RENTAL & CALLS
DEPARTMENT OF HEALTH,SOUTH CENTRAL AMBULANCE NHS FOUNDATION TRUST,06/04/2023,IT,ICT,EUROPEAN ELECTRONIQUE LTD,2018678,53356.81,DATA LINES RENTAL & CALLS
DEPARTMENT OF HEALTH,SOUTH CENTRAL AMBULANCE NHS FOUNDATION TRUST,06/04/2023,IT,ICT,AIRWAVE SOLUTIONS LTD,2021953,82391.04,VEHICLE RADIOS
DEPARTMENT OF HEALTH,SOUTH CENTRAL AMBULANCE NHS FOUNDATION TRUST,06/04/2023,OTHER EQPT,OPERATIONS,STRYKER UK LTD,2024416,328680,AMBULANCE EQUIPMENT
DEPARTMENT OF HEALTH,SOUTH CENTRAL AMBULANCE NHS FOUNDATION TRUST,06/04/2023,RENTS,OPERATIONS,YORKSHIRE AMBULANCE SERVICE NHS TRUST,2021960,26399.55,OFFICE RENTAL
DEPARTMENT OF HEALTH,SOUTH CENTRAL AMBULANCE NHS FOUNDATION TRUST,20/04/2023,FLEET SERVICES,OPERATIONS,SOUTH CENTRAL FLEET SERVICES LTD,2022003,13170.5,VEHICLE LEASE COSTS
DEPARTMENT OF HEALTH,SOUTH CENTRAL AMBULANCE NHS FOUNDATION TRUST,20/04/2023,FLEET SERVICES,OPERATIONS,SOUTH CENTRAL FLEET SERVICES LTD,2022003,390000,VEHICLE LEASE COSTS
DEPARTMENT OF HEALTH,SOUTH CENTRAL AMBULANCE NHS FOUNDATION TRUST,20/04/2023,FLEET SERVICES,OPERATIONS,SOUTH CENTRAL FLEET SERVICES LTD,2022003,1945.07,VEHICLE LEASE COSTS
DEPARTMENT OF HEALTH,SOUTH CENTRAL AMBULANCE NHS FOUNDATION TRUST,20/04/2023,FLEET SERVICES,OPERATIONS,SOUTH CENTRAL FLEET SERVICES LTD,2022003,8470.85,VEHICLE LEASE COSTS
DEPARTMENT OF HEALTH,SOUTH CENTRAL AMBULANCE NHS FOUNDATION TRUST,13/04/2023,FLEET SERVICES,OPERATIONS,SOUTH CENTRAL FLEET SERVICES LTD,2022006,27683.21,VEHICLE LEASE COSTS
DEPARTMENT OF HEALTH,SOUTH CENTRAL AMBULANCE NHS FOUNDATION TRUST,13/04/2023,FLEET SERVICES,OPERATIONS,SOUTH CENTRAL FLEET SERVICES LTD,2022006,2392.8,VEHICLE LEASE COSTS
DEPARTMENT OF HEALTH,SOUTH CENTRAL AMBULANCE NHS FOUNDATION TRUST,13/04/2023,FLEET SERVICES,OPERATIONS,SOUTH CENTRAL FLEET SERVICES LTD,2022006,7089.6,VEHICLE LEASE COSTS
DEPARTMENT OF HEALTH,SOUTH CENTRAL AMBULANCE NHS FOUNDATION TRUST,13/04/2023,FLEET SERVICES,OPERATIONS,SOUTH CENTRAL FLEET SERVICES LTD,2022006,4439.23,VEHICLE LEASE COSTS
DEPARTMENT OF HEALTH,SOUTH CENTRAL AMBULANCE NHS FOUNDATION TRUST,13/04/2023,VEHICLE LEASING,OPERATIONS,SOUTH CENTRAL FLEET SERVICES LTD,2022007,164135.14,VEHICLE LEASE COSTS
DEPARTMENT OF HEALTH,SOUTH CENTRAL AMBULANCE NHS FOUNDATION TRUST,20/04/2023,VEHICLE LEASING,OPERATIONS,SOUTH CENTRAL FLEET SERVICES LTD,2022008,23972.4,VEHICLE LEASE COSTS
DEPARTMENT OF HEALTH,SOUTH CENTRAL AMBULANCE NHS FOUNDATION TRUST,20/04/2023,VEHICLE LEASING,OPERATIONS,SOUTH CENTRAL FLEET SERVICES LTD,2022008,5182.2,VEHICLE LEASE COSTS
DEPARTMENT OF HEALTH,SOUTH CENTRAL AMBULANCE NHS FOUNDATION TRUST,20/04/2023,VEHICLE LEASING,OPERATIONS,SOUTH CENTRAL FLEET SERVICES LTD,2022008,32808.6,VEHICLE LEASE COSTS
DEPARTMENT OF HEALTH,SOUTH CENTRAL AMBULANCE NHS FOUNDATION TRUST,20/04/2023,VEHICLE LEASING,OPERATIONS,SOUTH CENTRAL FLEET SERVICES LTD,2022008,5182.2,VEHICLE LEASE COSTS
DEPARTMENT OF HEALTH,SOUTH CENTRAL AMBULANCE NHS FOUNDATION TRUST,20/04/2023,VEHICLE LEASING,OPERATIONS,SOUTH CENTRAL FLEET SERVICES LTD,2022008,20384.4,VEHICLE LEASE COSTS
DEPARTMENT OF HEALTH,SOUTH CENTRAL AMBULANCE NHS FOUNDATION TRUST,20/04/2023,VEHICLE LEASING,OPERATIONS,SOUTH CENTRAL FLEET SERVICES LTD,2022008,3454.8,VEHICLE LEASE COSTS
DEPARTMENT OF HEALTH,SOUTH CENTRAL AMBULANCE NHS FOUNDATION TRUST,20/04/2023,VEHICLE LEASING,OPERATIONS,SOUTH CENTRAL FLEET SERVICES LTD,2022008,11959.5,VEHICLE LEASE COSTS
DEPARTMENT OF HEALTH,SOUTH CENTRAL AMBULANCE NHS FOUNDATION TRUST,20/04/2023,VEHICLE LEASING,OPERATIONS,SOUTH CENTRAL FLEET SERVICES LTD,2022008,1727.4,VEHICLE LEASE COSTS
DEPARTMENT OF HEALTH,SOUTH CENTRAL AMBULANCE NHS FOUNDATION TRUST,06/04/2023,PTS PRIVATE PROVIDERS,NON EMERGENCY SERVICES,MEDI4 AMBULANCE SERVICES LTD,2023396,33908.32,PP HOURS
DEPARTMENT OF HEALTH,SOUTH CENTRAL AMBULANCE NHS FOUNDATION TRUST,06/04/2023,PTS PRIVATE PROVIDERS,NON EMERGENCY SERVICES,MEDI4 AMBULANCE SERVICES LTD,2023398,33411.55,PP HOURS
DEPARTMENT OF HEALTH,SOUTH CENTRAL AMBULANCE NHS FOUNDATION TRUST,06/04/2023,PTS PRIVATE PROVIDERS,NON EMERGENCY SERVICES,ELITE MEDICAL AND AMBULANCE SERVICE LTD,2023503,45213.27,PP HOURS
DEPARTMENT OF HEALTH,SOUTH CENTRAL AMBULANCE NHS FOUNDATION TRUST,06/04/2023,IT,ICT,TRUSTCO PLC,2028009,35868,SERVER REPLACEMENTS       
DEPARTMENT OF HEALTH,SOUTH CENTRAL AMBULANCE NHS FOUNDATION TRUST,06/04/2023,PTS PRIVATE PROVIDERS,NON EMERGENCY SERVICES,STREAMLINE (KENT) LTD,2027981,37623.1,PP HOURS
DEPARTMENT OF HEALTH,SOUTH CENTRAL AMBULANCE NHS FOUNDATION TRUST,06/04/2023,VEHICLE LEASING,OPERATIONS,TESLA MOTORS LTD,2028839,54090,VEHICLE PURCHASE COST
DEPARTMENT OF HEALTH,SOUTH CENTRAL AMBULANCE NHS FOUNDATION TRUST,06/04/2023,VEHICLE LEASING,OPERATIONS,TESLA MOTORS LTD,2028840,54090,VEHICLE PURCHASE COST
DEPARTMENT OF HEALTH,SOUTH CENTRAL AMBULANCE NHS FOUNDATION TRUST,06/04/2023,VEHICLE LEASING,OPERATIONS,TESLA MOTORS LTD,2028841,54090,VEHICLE PURCHASE COST
DEPARTMENT OF HEALTH,SOUTH CENTRAL AMBULANCE NHS FOUNDATION TRUST,06/04/2023,VEHICLE LEASING,OPERATIONS,TESLA MOTORS LTD,2028842,54090,VEHICLE PURCHASE COST
DEPARTMENT OF HEALTH,SOUTH CENTRAL AMBULANCE NHS FOUNDATION TRUST,06/04/2023,VEHICLE LEASING,OPERATIONS,TESLA MOTORS LTD,2028843,54090,VEHICLE PURCHASE COST
DEPARTMENT OF HEALTH,SOUTH CENTRAL AMBULANCE NHS FOUNDATION TRUST,06/04/2023,VEHICLE LEASING,OPERATIONS,TESLA MOTORS LTD,2028844,54090,VEHICLE PURCHASE COST
DEPARTMENT OF HEALTH,SOUTH CENTRAL AMBULANCE NHS FOUNDATION TRUST,06/04/2023,VEHICLE LEASING,OPERATIONS,TESLA MOTORS LTD,2028845,54090,VEHICLE PURCHASE COST
DEPARTMENT OF HEALTH,SOUTH CENTRAL AMBULANCE NHS FOUNDATION TRUST,06/04/2023,VEHICLE LEASING,OPERATIONS,TESLA MOTORS LTD,2028846,54090,VEHICLE PURCHASE COST
DEPARTMENT OF HEALTH,SOUTH CENTRAL AMBULANCE NHS FOUNDATION TRUST,06/04/2023,VEHICLE LEASING,OPERATIONS,TESLA MOTORS LTD,2028847,54090,VEHICLE PURCHASE COST
DEPARTMENT OF HEALTH,SOUTH CENTRAL AMBULANCE NHS FOUNDATION TRUST,06/04/2023,VEHICLE LEASING,OPERATIONS,TESLA MOTORS LTD,2028848,54090,VEHICLE PURCHASE COST
DEPARTMENT OF HEALTH,SOUTH CENTRAL AMBULANCE NHS FOUNDATION TRUST,06/04/2023,SURVEYORS FEES,"FINANCE, ESTATES AND PROCUREMENT",PHILIPS SURVEYORS LLP,2030244,46612.8,CONTRACT DESIGN SERVICES
DEPARTMENT OF HEALTH,SOUTH CENTRAL AMBULANCE NHS FOUNDATION TRUST,13/04/2023,BUILDING WORKS,"FINANCE, ESTATES AND PROCUREMENT",J.TOMLINSON - INTEGRATED BUILDING SOLUTIONS,2036609,33524.4,BUILDING MAINTENANCE CONTRACT
DEPARTMENT OF HEALTH,SOUTH CENTRAL AMBULANCE NHS FOUNDATION TRUST,13/04/2023,TEMPS CLINICAL,OPERATIONS,"NHS SOUTH, CENTRAL & WEST CSU",2032122,151896.5,GPCAS PROJECT
DEPARTMENT OF HEALTH,SOUTH CENTRAL AMBULANCE NHS FOUNDATION TRUST,13/04/2023,BUILDING WORKS,"FINANCE, ESTATES AND PROCUREMENT",J.TOMLINSON - INTEGRATED BUILDING SOLUTIONS,2036611,32254.1,BUILDING MAINTENANCE CONTRACT
DEPARTMENT OF HEALTH,SOUTH CENTRAL AMBULANCE NHS FOUNDATION TRUST,13/04/2023,IT,ICT,4NET TECHNOLOGIES LTD,2033084,521839.74,TELEPHONY CONTRACT
DEPARTMENT OF HEALTH,SOUTH CENTRAL AMBULANCE NHS FOUNDATION TRUST,13/04/2023,CONSULTANCY,ICT,AILANTO LTD,2036584,33600,HARDWARE REPLACEMENT
DEPARTMENT OF HEALTH,SOUTH CENTRAL AMBULANCE NHS FOUNDATION TRUST,13/04/2023,BUILDING WORKS,"FINANCE, ESTATES AND PROCUREMENT",J.TOMLINSON - INTEGRATED BUILDING SOLUTIONS,2033129,47925.48,BUILDING MAINTENANCE CONTRACT
DEPARTMENT OF HEALTH,SOUTH CENTRAL AMBULANCE NHS FOUNDATION TRUST,13/04/2023,BUILDING WORKS,"FINANCE, ESTATES AND PROCUREMENT",J.TOMLINSON - INTEGRATED BUILDING SOLUTIONS,2033130,48533.88,BUILDING MAINTENANCE CONTRACT
DEPARTMENT OF HEALTH,SOUTH CENTRAL AMBULANCE NHS FOUNDATION TRUST,06/04/2023,RENTS,"FINANCE, ESTATES AND PROCUREMENT",HEALTH EDUCATION ENGLAND,2033050,14154,RENT - SOUTHERN HOUSE
DEPARTMENT OF HEALTH,SOUTH CENTRAL AMBULANCE NHS FOUNDATION TRUST,06/04/2023,SERVICE CHARGES,"FINANCE, ESTATES AND PROCUREMENT",HEALTH EDUCATION ENGLAND,2033050,7146,RENT - SOUTHERN HOUSE
DEPARTMENT OF HEALTH,SOUTH CENTRAL AMBULANCE NHS FOUNDATION TRUST,06/04/2023,SERVICE CHARGES,"FINANCE, ESTATES AND PROCUREMENT",HEALTH EDUCATION ENGLAND,2033050,2078,RENT - SOUTHERN HOUSE
DEPARTMENT OF HEALTH,SOUTH CENTRAL AMBULANCE NHS FOUNDATION TRUST,06/04/2023,SERVICE CHARGES,"FINANCE, ESTATES AND PROCUREMENT",HEALTH EDUCATION ENGLAND,2033050,1,RENT - SOUTHERN HOUSE
DEPARTMENT OF HEALTH,SOUTH CENTRAL AMBULANCE NHS FOUNDATION TRUST,06/04/2023,SERVICE CHARGES,"FINANCE, ESTATES AND PROCUREMENT",HEALTH EDUCATION ENGLAND,2033050,1705,RENT - SOUTHERN HOUSE
DEPARTMENT OF HEALTH,SOUTH CENTRAL AMBULANCE NHS FOUNDATION TRUST,13/04/2023,IT,ICT,DOCWORKS LTD,2033680,21600,MANAGED SOLUTION
DEPARTMENT OF HEALTH,SOUTH CENTRAL AMBULANCE NHS FOUNDATION TRUST,13/04/2023,IT,ICT,DOCWORKS LTD,2033680,28800,MANAGED SOLUTION
DEPARTMENT OF HEALTH,SOUTH CENTRAL AMBULANCE NHS FOUNDATION TRUST,13/04/2023,BUILDING WORKS,"FINANCE, ESTATES AND PROCUREMENT",J.TOMLINSON - INTEGRATED BUILDING SOLUTIONS,2035193,32509.68,BUILDING MAINTENANCE CONTRACT
DEPARTMENT OF HEALTH,SOUTH CENTRAL AMBULANCE NHS FOUNDATION TRUST,13/04/2023,SUBSCRIPTIONS,CHIEF EXECUTIVE AND THE BOARD,ASSOCIATION OF AMBULANCE CHIEF EXECUTIVES,2033133,84000,12 MONTH SUBSCRIPTION 2023/24
DEPARTMENT OF HEALTH,SOUTH CENTRAL AMBULANCE NHS FOUNDATION TRUST,06/04/2023,RENTS,"FINANCE, ESTATES AND PROCUREMENT",WEST OXFORDSHIRE D.C.,2033140,27720,RENT AND SERVICE CHARGE NORTH
DEPARTMENT OF HEALTH,SOUTH CENTRAL AMBULANCE NHS FOUNDATION TRUST,06/04/2023,SERVICE CHARGES,"FINANCE, ESTATES AND PROCUREMENT",WEST OXFORDSHIRE D.C.,2033140,1966.68,RENT AND SERVICE CHARGE NORTH
DEPARTMENT OF HEALTH,SOUTH CENTRAL AMBULANCE NHS FOUNDATION TRUST,06/04/2023,RENTS,"FINANCE, ESTATES AND PROCUREMENT",WEST OXFORDSHIRE D.C.,2033140,78000,RENT AND SERVICE CHARGE NORTH
DEPARTMENT OF HEALTH,SOUTH CENTRAL AMBULANCE NHS FOUNDATION TRUST,06/04/2023,SERVICE CHARGES,"FINANCE, ESTATES AND PROCUREMENT",WEST OXFORDSHIRE D.C.,2033140,642.66,RENT AND SERVICE CHARGE NORTH
DEPARTMENT OF HEALTH,SOUTH CENTRAL AMBULANCE NHS FOUNDATION TRUST,13/04/2023,RECRUITMENT COSTS,OPERATIONS,NICE MEDIA LTD,2033671,38640,HEE FUNDED RECRUITMENT VIDEO
DEPARTMENT OF HEALTH,SOUTH CENTRAL AMBULANCE NHS FOUNDATION TRUST,06/04/2023,PTS PRIVATE PROVIDERS,NON EMERGENCY SERVICES,F.A.S.T. AMBULANCE SERVICE LTD,2033701,26366.73,PP HOURS
DEPARTMENT OF HEALTH,SOUTH CENTRAL AMBULANCE NHS FOUNDATION TRUST,13/04/2023,PTS PRIVATE PROVIDERS,NON EMERGENCY SERVICES,F.A.S.T. AMBULANCE SERVICE LTD,2033702,27075.08,PP HOURS
DEPARTMENT OF HEALTH,SOUTH CENTRAL AMBULANCE NHS FOUNDATION TRUST,13/04/2023,PTS PRIVATE PROVIDERS,NON EMERGENCY SERVICES,ELITE MEDICAL AND AMBULANCE SERVICE LTD,2033703,40482.8,PP HOURS
DEPARTMENT OF HEALTH,SOUTH CENTRAL AMBULANCE NHS FOUNDATION TRUST,06/04/2023,PTS PRIVATE PROVIDERS,NON EMERGENCY SERVICES,MEDI4 AMBULANCE SERVICES LTD,2033704,33386.18,PP HOURS
DEPARTMENT OF HEALTH,SOUTH CENTRAL AMBULANCE NHS FOUNDATION TRUST,13/04/2023,PTS PRIVATE PROVIDERS,NON EMERGENCY SERVICES,MEDI4 AMBULANCE SERVICES LTD,2033706,33176.59,PP HOURS
DEPARTMENT OF HEALTH,SOUTH CENTRAL AMBULANCE NHS FOUNDATION TRUST,13/04/2023,PTS PRIVATE PROVIDERS,NON EMERGENCY SERVICES,STREAMLINE (KENT) LTD,2033714,38408.42,PP HOURS
DEPARTMENT OF HEALTH,SOUTH CENTRAL AMBULANCE NHS FOUNDATION TRUST,06/04/2023,PRIVATE AMBULANCE PROVIDERS,OPERATIONS,ELITE EVENT MEDICAL SERVICES LTD,2033723,97452.28,PP HOURS
DEPARTMENT OF HEALTH,SOUTH CENTRAL AMBULANCE NHS FOUNDATION TRUST,13/04/2023,PRIVATE AMBULANCE PROVIDERS,OPERATIONS,ELITE EVENT MEDICAL SERVICES LTD,2033724,83765,PP HOURS
DEPARTMENT OF HEALTH,SOUTH CENTRAL AMBULANCE NHS FOUNDATION TRUST,06/04/2023,PRIVATE AMBULANCE PROVIDERS,OPERATIONS,ENHANCED CARE SERVICES,2033725,35539.3,PP HOURS
DEPARTMENT OF HEALTH,SOUTH CENTRAL AMBULANCE NHS FOUNDATION TRUST,13/04/2023,PRIVATE AMBULANCE PROVIDERS,OPERATIONS,ENHANCED CARE SERVICES,2033726,36536.38,PP HOURS
DEPARTMENT OF HEALTH,SOUTH CENTRAL AMBULANCE NHS FOUNDATION TRUST,06/04/2023,PRIVATE AMBULANCE PROVIDERS,OPERATIONS,MEDICARE EMS GROUP UK LTD,2033733,66670.02,PP HOURS
DEPARTMENT OF HEALTH,SOUTH CENTRAL AMBULANCE NHS FOUNDATION TRUST,13/04/2023,PRIVATE AMBULANCE PROVIDERS,OPERATIONS,MEDICARE EMS GROUP UK LTD,2033734,63020.24,PP HOURS
DEPARTMENT OF HEALTH,SOUTH CENTRAL AMBULANCE NHS FOUNDATION TRUST,06/04/2023,PRIVATE AMBULANCE PROVIDERS,OPERATIONS,PHOENIX RESPONSE SERVICES LTD,2033737,53600.46,PP HOURS
DEPARTMENT OF HEALTH,SOUTH CENTRAL AMBULANCE NHS FOUNDATION TRUST,13/04/2023,PRIVATE AMBULANCE PROVIDERS,OPERATIONS,PHOENIX RESPONSE SERVICES LTD,2033739,54244.76,PP HOURS
DEPARTMENT OF HEALTH,SOUTH CENTRAL AMBULANCE NHS FOUNDATION TRUST,06/04/2023,PRIVATE AMBULANCE PROVIDERS,OPERATIONS,POLARIS MEDICAL SERVICES LTD,2033744,87068.03,PP HOURS
DEPARTMENT OF HEALTH,SOUTH CENTRAL AMBULANCE NHS FOUNDATION TRUST,13/04/2023,PRIVATE AMBULANCE PROVIDERS,OPERATIONS,POLARIS MEDICAL SERVICES LTD,2033745,84200.68,PP HOURS
DEPARTMENT OF HEALTH,SOUTH CENTRAL AMBULANCE NHS FOUNDATION TRUST,06/04/2023,PRIVATE AMBULANCE PROVIDERS,OPERATIONS,SOUTHERN MEDICAL RESCUE,2033748,39225.86,PP HOURS
DEPARTMENT OF HEALTH,SOUTH CENTRAL AMBULANCE NHS FOUNDATION TRUST,13/04/2023,PRIVATE AMBULANCE PROVIDERS,OPERATIONS,SOUTHERN MEDICAL RESCUE,2033750,41503.02,PP HOURS
DEPARTMENT OF HEALTH,SOUTH CENTRAL AMBULANCE NHS FOUNDATION TRUST,13/04/2023,IT,CHIEF EXECUTIVE AND THE BOARD,BYTES SOFTWARE SERVICES LTD,2035057,83980.8,COMPUTER SOFTWARE LICENCE FEE
DEPARTMENT OF HEALTH,SOUTH CENTRAL AMBULANCE NHS FOUNDATION TRUST,13/04/2023,TRAINING/TEACHING AIDS/EQUIPMENT,CLINICAL SERVICES,ADVANCED CPR SOLUTIONS LLC,2036884,59960.04,RESEARCH EQUIPMENT
DEPARTMENT OF HEALTH,SOUTH CENTRAL AMBULANCE NHS FOUNDATION TRUST,13/04/2023,TRAINING/TEACHING AIDS/EQUIPMENT,CLINICAL SERVICES,ADVANCED CPR SOLUTIONS LLC,2036884,3094.01,RESEARCH EQUIPMENT
DEPARTMENT OF HEALTH,SOUTH CENTRAL AMBULANCE NHS FOUNDATION TRUST,13/04/2023,TRAINING/TEACHING AIDS/EQUIPMENT,CLINICAL SERVICES,ADVANCED CPR SOLUTIONS LLC,2036884,3750,RESEARCH EQUIPMENT
DEPARTMENT OF HEALTH,SOUTH CENTRAL AMBULANCE NHS FOUNDATION TRUST,13/04/2023,TRAINING/TEACHING AIDS/EQUIPMENT,CLINICAL SERVICES,ADVANCED CPR SOLUTIONS LLC,2036884,2000,RESEARCH EQUIPMENT
DEPARTMENT OF HEALTH,SOUTH CENTRAL AMBULANCE NHS FOUNDATION TRUST,20/04/2023,PTS PRIVATE PROVIDERS,NON EMERGENCY SERVICES,ELITE MEDICAL AND AMBULANCE SERVICE LTD,2036828,40137.3,PP HOURS
DEPARTMENT OF HEALTH,SOUTH CENTRAL AMBULANCE NHS FOUNDATION TRUST,20/04/2023,BUILDING WORKS,"FINANCE, ESTATES AND PROCUREMENT",J.TOMLINSON - INTEGRATED BUILDING SOLUTIONS,2036855,56328.95,BUILDING MAINTENANCE CONTRACT
DEPARTMENT OF HEALTH,SOUTH CENTRAL AMBULANCE NHS FOUNDATION TRUST,20/04/2023,IT,ICT,ARROW BUSINESS COMMUNICATIONS LTD,2037830,4500,EXTERNAL NETWORK PROTECTION
DEPARTMENT OF HEALTH,SOUTH CENTRAL AMBULANCE NHS FOUNDATION TRUST,20/04/2023,IT,ICT,ARROW BUSINESS COMMUNICATIONS LTD,2037830,20880,EXTERNAL NETWORK PROTECTION
DEPARTMENT OF HEALTH,SOUTH CENTRAL AMBULANCE NHS FOUNDATION TRUST,20/04/2023,IT,ICT,ARROW BUSINESS COMMUNICATIONS LTD,2037830,57564,EXTERNAL NETWORK PROTECTION
DEPARTMENT OF HEALTH,SOUTH CENTRAL AMBULANCE NHS FOUNDATION TRUST,20/04/2023,IT,ICT,ARROW BUSINESS COMMUNICATIONS LTD,2037830,12420,EXTERNAL NETWORK PROTECTION
DEPARTMENT OF HEALTH,SOUTH CENTRAL AMBULANCE NHS FOUNDATION TRUST,13/04/2023,BUILDING WORKS,"FINANCE, ESTATES AND PROCUREMENT",J.TOMLINSON - INTEGRATED BUILDING SOLUTIONS,2039719,37727.56,BUILDING MAINTENANCE CONTRACT
DEPARTMENT OF HEALTH,SOUTH CENTRAL AMBULANCE NHS FOUNDATION TRUST,20/04/2023,PRIVATE AMBULANCE PROVIDERS,OPERATIONS,ELITE EVENT MEDICAL SERVICES LTD,2039772,101904.56,PP HOURS
DEPARTMENT OF HEALTH,SOUTH CENTRAL AMBULANCE NHS FOUNDATION TRUST,20/04/2023,PRIVATE AMBULANCE PROVIDERS,OPERATIONS,ENHANCED CARE SERVICES,2039775,35290.72,PP HOURS
DEPARTMENT OF HEALTH,SOUTH CENTRAL AMBULANCE NHS FOUNDATION TRUST,20/04/2023,PRIVATE AMBULANCE PROVIDERS,OPERATIONS,MEDICARE EMS GROUP UK LTD,2039780,34784.54,PP HOURS
DEPARTMENT OF HEALTH,SOUTH CENTRAL AMBULANCE NHS FOUNDATION TRUST,20/04/2023,PRIVATE AMBULANCE PROVIDERS,OPERATIONS,MEDICARE EMS GROUP UK LTD,2039780,21301.98,PP HOURS
DEPARTMENT OF HEALTH,SOUTH CENTRAL AMBULANCE NHS FOUNDATION TRUST,20/04/2023,PRIVATE AMBULANCE PROVIDERS,OPERATIONS,PHOENIX RESPONSE SERVICES LTD,2039783,53664.34,PP HOURS
DEPARTMENT OF HEALTH,SOUTH CENTRAL AMBULANCE NHS FOUNDATION TRUST,20/04/2023,PRIVATE AMBULANCE PROVIDERS,OPERATIONS,POLARIS MEDICAL SERVICES LTD,2039785,74419.54,PP HOURS
DEPARTMENT OF HEALTH,SOUTH CENTRAL AMBULANCE NHS FOUNDATION TRUST,20/04/2023,PRIVATE AMBULANCE PROVIDERS,OPERATIONS,SOUTHERN MEDICAL RESCUE,2039787,38110.77,PP HOURS
DEPARTMENT OF HEALTH,SOUTH CENTRAL AMBULANCE NHS FOUNDATION TRUST,20/04/2023,MAKE READY SERVICES,CLINICAL SERVICES,CHURCHILL CONTRACT SERVICES LTD,2039789,28358.79,MAKE READY SERVICES
DEPARTMENT OF HEALTH,SOUTH CENTRAL AMBULANCE NHS FOUNDATION TRUST,20/04/2023,MAKE READY SERVICES,CLINICAL SERVICES,CHURCHILL CONTRACT SERVICES LTD,2039789,18355.3,MAKE READY SERVICES
DEPARTMENT OF HEALTH,SOUTH CENTRAL AMBULANCE NHS FOUNDATION TRUST,20/04/2023,MAKE READY SERVICES,CLINICAL SERVICES,CHURCHILL CONTRACT SERVICES LTD,2039789,75280.19,MAKE READY SERVICES
DEPARTMENT OF HEALTH,SOUTH CENTRAL AMBULANCE NHS FOUNDATION TRUST,20/04/2023,MAKE READY SERVICES,CLINICAL SERVICES,CHURCHILL CONTRACT SERVICES LTD,2039789,30365.04,MAKE READY SERVICES
DEPARTMENT OF HEALTH,SOUTH CENTRAL AMBULANCE NHS FOUNDATION TRUST,20/04/2023,MAKE READY SERVICES,CLINICAL SERVICES,CHURCHILL CONTRACT SERVICES LTD,2039789,8465.2,MAKE READY SERVICES
DEPARTMENT OF HEALTH,SOUTH CENTRAL AMBULANCE NHS FOUNDATION TRUST,20/04/2023,MAKE READY SERVICES,CLINICAL SERVICES,CHURCHILL CONTRACT SERVICES LTD,2039789,7930.7,MAKE READY SERVICES
DEPARTMENT OF HEALTH,SOUTH CENTRAL AMBULANCE NHS FOUNDATION TRUST,20/04/2023,MAKE READY SERVICES,CLINICAL SERVICES,CHURCHILL CONTRACT SERVICES LTD,2039789,10082.3,MAKE READY SERVICES
DEPARTMENT OF HEALTH,SOUTH CENTRAL AMBULANCE NHS FOUNDATION TRUST,20/04/2023,MAKE READY SERVICES,CLINICAL SERVICES,CHURCHILL CONTRACT SERVICES LTD,2039789,12540.67,MAKE READY SERVICES
DEPARTMENT OF HEALTH,SOUTH CENTRAL AMBULANCE NHS FOUNDATION TRUST,20/04/2023,MAKE READY SERVICES,CLINICAL SERVICES,CHURCHILL CONTRACT SERVICES LTD,2039789,7937.48,MAKE READY SERVICES
DEPARTMENT OF HEALTH,SOUTH CENTRAL AMBULANCE NHS FOUNDATION TRUST,20/04/2023,MAKE READY SERVICES,CLINICAL SERVICES,CHURCHILL CONTRACT SERVICES LTD,2039789,9664.15,MAKE READY SERVICES
DEPARTMENT OF HEALTH,SOUTH CENTRAL AMBULANCE NHS FOUNDATION TRUST,20/04/2023,MAKE READY SERVICES,CLINICAL SERVICES,CHURCHILL CONTRACT SERVICES LTD,2039789,48712.78,MAKE READY SERVICES
DEPARTMENT OF HEALTH,SOUTH CENTRAL AMBULANCE NHS FOUNDATION TRUST,20/04/2023,MAKE READY SERVICES,CLINICAL SERVICES,CHURCHILL CONTRACT SERVICES LTD,2039789,9664.15,MAKE READY SERVICES
DEPARTMENT OF HEALTH,SOUTH CENTRAL AMBULANCE NHS FOUNDATION TRUST,20/04/2023,MAKE READY SERVICES,CLINICAL SERVICES,CHURCHILL CONTRACT SERVICES LTD,2039789,17027.86,MAKE READY SERVICES
DEPARTMENT OF HEALTH,SOUTH CENTRAL AMBULANCE NHS FOUNDATION TRUST,20/04/2023,MAKE READY SERVICES,CLINICAL SERVICES,CHURCHILL CONTRACT SERVICES LTD,2039789,9664.15,MAKE READY SERVICES
DEPARTMENT OF HEALTH,SOUTH CENTRAL AMBULANCE NHS FOUNDATION TRUST,20/04/2023,MAKE READY SERVICES,CLINICAL SERVICES,CHURCHILL CONTRACT SERVICES LTD,2039789,10275.5,MAKE READY SERVICES
DEPARTMENT OF HEALTH,SOUTH CENTRAL AMBULANCE NHS FOUNDATION TRUST,20/04/2023,MAKE READY SERVICES,CLINICAL SERVICES,CHURCHILL CONTRACT SERVICES LTD,2039789,25651.58,MAKE READY SERVICES
DEPARTMENT OF HEALTH,SOUTH CENTRAL AMBULANCE NHS FOUNDATION TRUST,20/04/2023,MAKE READY SERVICES,CLINICAL SERVICES,CHURCHILL CONTRACT SERVICES LTD,2039789,321.54,MAKE READY SERVICES
DEPARTMENT OF HEALTH,SOUTH CENTRAL AMBULANCE NHS FOUNDATION TRUST,20/04/2023,MAKE READY SERVICES,CLINICAL SERVICES,CHURCHILL CONTRACT SERVICES LTD,2039789,2764.33,MAKE READY SERVICES
DEPARTMENT OF HEALTH,SOUTH CENTRAL AMBULANCE NHS FOUNDATION TRUST,20/04/2023,MAKE READY SERVICES,CLINICAL SERVICES,CHURCHILL CONTRACT SERVICES LTD,2039789,2870.26,MAKE READY SERVICES
DEPARTMENT OF HEALTH,SOUTH CENTRAL AMBULANCE NHS FOUNDATION TRUST,20/04/2023,GENERAL CONSUMABLES,NON EMERGENCY SERVICES,CHURCHILL CONTRACT SERVICES LTD,2039789,1503.58,MAKE READY SERVICES
DEPARTMENT OF HEALTH,SOUTH CENTRAL AMBULANCE NHS FOUNDATION TRUST,27/04/2023,SUBSCRIPTIONS,CHIEF EXECUTIVE AND THE BOARD,NHS PROVIDERS,2039829,30470,NHS PROVIDERS MEMBERSHIP FEE  
DEPARTMENT OF HEALTH,SOUTH CENTRAL AMBULANCE NHS FOUNDATION TRUST,20/04/2023,BUILDING MAINTENANCE CONT,"FINANCE, ESTATES AND PROCUREMENT",J.TOMLINSON - INTEGRATED BUILDING SOLUTIONS,2040337,177756.36,BUILDING MAINTENANCE CONTRACT
DEPARTMENT OF HEALTH,SOUTH CENTRAL AMBULANCE NHS FOUNDATION TRUST,06/04/2023,ACCIDENT REPAIRS,OPERATIONS,CAMBRIDGE GARAGE (P'MOUTH) LTD,2040390,31711.4,VEHICLE REPAIRS
DEPARTMENT OF HEALTH,SOUTH CENTRAL AMBULANCE NHS FOUNDATION TRUST,20/04/2023,PTS PRIVATE PROVIDERS,NON EMERGENCY SERVICES,F.A.S.T. AMBULANCE SERVICE LTD,2040564,25346.08,PP HOURS
DEPARTMENT OF HEALTH,SOUTH CENTRAL AMBULANCE NHS FOUNDATION TRUST,20/04/2023,PTS PRIVATE PROVIDERS,NON EMERGENCY SERVICES,MEDI4 AMBULANCE SERVICES LTD,2040565,34920.94,PP HOURS
DEPARTMENT OF HEALTH,SOUTH CENTRAL AMBULANCE NHS FOUNDATION TRUST,20/04/2023,IT,CHIEF EXECUTIVE AND THE BOARD,TOTALMOBILE LTD,2042339,336240,CONTRACT SOFTWARE
DEPARTMENT OF HEALTH,SOUTH CENTRAL AMBULANCE NHS FOUNDATION TRUST,20/04/2023,HEALTH & SAFETY MAINTENANCE,"FINANCE, ESTATES AND PROCUREMENT",H2O ENVIRONMENTAL SERVICES,2041614,492,WATER RISK ASSESSMENT 
DEPARTMENT OF HEALTH,SOUTH CENTRAL AMBULANCE NHS FOUNDATION TRUST,20/04/2023,HEALTH & SAFETY MAINTENANCE,"FINANCE, ESTATES AND PROCUREMENT",H2O ENVIRONMENTAL SERVICES,2041614,25920,WATER RISK ASSESSMENT 
DEPARTMENT OF HEALTH,SOUTH CENTRAL AMBULANCE NHS FOUNDATION TRUST,20/04/2023,EXTERNAL CONSULTANCY,OPERATIONS,THE 4OC LIMITED,2044750,29700,PRIVATE PROVIDER PLANNING
DEPARTMENT OF HEALTH,SOUTH CENTRAL AMBULANCE NHS FOUNDATION TRUST,20/04/2023,IT,ICT,ALLOCATE SOFTWARE LTD,2042356,28962,ANNUAL LICENCE RENEWAL
DEPARTMENT OF HEALTH,SOUTH CENTRAL AMBULANCE NHS FOUNDATION TRUST,27/04/2023,TEMPS CLINICAL,OPERATIONS,PHL - PARTNERING HEALTH LTD,2042323,32238,NIGHT NURSING SUB-CONTRACT
DEPARTMENT OF HEALTH,SOUTH CENTRAL AMBULANCE NHS FOUNDATION TRUST,27/04/2023,TEMPS CLINICAL,OPERATIONS,PHL - PARTNERING HEALTH LTD,2042324,34566,URGENT CARE SUB-CONTRACT
DEPARTMENT OF HEALTH,SOUTH CENTRAL AMBULANCE NHS FOUNDATION TRUST,27/04/2023,IT,ICT,INTUITI SOLUTIONS LTD,2045626,89160,SYSTEM DEVELOPMENT AND SUPPORT
DEPARTMENT OF HEALTH,SOUTH CENTRAL AMBULANCE NHS FOUNDATION TRUST,27/04/2023,IT,OPERATIONS,CHG - MERIDIAN UK LTD,2045627,68845.87,HARDWARE LEASE
DEPARTMENT OF HEALTH,SOUTH CENTRAL AMBULANCE NHS FOUNDATION TRUST,27/04/2023,IT,ICT,EUROPEAN ELECTRONIQUE LTD,2045630,53356.81,DATA LINES RENTAL & CALLS
DEPARTMENT OF HEALTH,SOUTH CENTRAL AMBULANCE NHS FOUNDATION TRUST,13/04/2023,EXTERNAL CONSULTANCY,CLINICAL SERVICES,OXFORD UNIVERSITY HOSPITALS NHS FOUNDATION TRUST,2044212,36412.17,MEDICAL DIRECTOR 
DEPARTMENT OF HEALTH,SOUTH CENTRAL AMBULANCE NHS FOUNDATION TRUST,13/04/2023,EXTERNAL CONSULTANCY,CLINICAL SERVICES,OXFORD UNIVERSITY HOSPITALS NHS FOUNDATION TRUST,2044212,8654.58,MEDICAL DIRECTOR 
DEPARTMENT OF HEALTH,SOUTH CENTRAL AMBULANCE NHS FOUNDATION TRUST,20/04/2023,VEHICLE HIRE,NON EMERGENCY SERVICES,ALLTRUCK PLC,2045539,15131.96,VEHICLE LEASE COSTS
DEPARTMENT OF HEALTH,SOUTH CENTRAL AMBULANCE NHS FOUNDATION TRUST,20/04/2023,VEHICLE HIRE,NON EMERGENCY SERVICES,ALLTRUCK PLC,2045539,10088.02,VEHICLE LEASE COSTS
DEPARTMENT OF HEALTH,SOUTH CENTRAL AMBULANCE NHS FOUNDATION TRUST,20/04/2023,VEHICLE HIRE,NON EMERGENCY SERVICES,ALLTRUCK PLC,2045539,10088.02,VEHICLE LEASE COSTS
DEPARTMENT OF HEALTH,SOUTH CENTRAL AMBULANCE NHS FOUNDATION TRUST,20/04/2023,NHS SUBCONTRACTORS,OPERATIONS,ISLE OF WIGHT NHS TRUST,2045548,286017.94,NHS SUB-CONTRACTS
DEPARTMENT OF HEALTH,SOUTH CENTRAL AMBULANCE NHS FOUNDATION TRUST,20/04/2023,MAKE READY SERVICES,CLINICAL SERVICES,CHURCHILL CONTRACT SERVICES LTD,2046854,28358.79,MAKE READY SERVICES
DEPARTMENT OF HEALTH,SOUTH CENTRAL AMBULANCE NHS FOUNDATION TRUST,20/04/2023,MAKE READY SERVICES,CLINICAL SERVICES,CHURCHILL CONTRACT SERVICES LTD,2046854,18355.3,MAKE READY SERVICES
DEPARTMENT OF HEALTH,SOUTH CENTRAL AMBULANCE NHS FOUNDATION TRUST,20/04/2023,MAKE READY SERVICES,CLINICAL SERVICES,CHURCHILL CONTRACT SERVICES LTD,2046854,75280.19,MAKE READY SERVICES
DEPARTMENT OF HEALTH,SOUTH CENTRAL AMBULANCE NHS FOUNDATION TRUST,20/04/2023,MAKE READY SERVICES,CLINICAL SERVICES,CHURCHILL CONTRACT SERVICES LTD,2046854,30365.04,MAKE READY SERVICES
DEPARTMENT OF HEALTH,SOUTH CENTRAL AMBULANCE NHS FOUNDATION TRUST,20/04/2023,MAKE READY SERVICES,CLINICAL SERVICES,CHURCHILL CONTRACT SERVICES LTD,2046854,8465.2,MAKE READY SERVICES
DEPARTMENT OF HEALTH,SOUTH CENTRAL AMBULANCE NHS FOUNDATION TRUST,20/04/2023,MAKE READY SERVICES,CLINICAL SERVICES,CHURCHILL CONTRACT SERVICES LTD,2046854,7930.7,MAKE READY SERVICES
DEPARTMENT OF HEALTH,SOUTH CENTRAL AMBULANCE NHS FOUNDATION TRUST,20/04/2023,MAKE READY SERVICES,CLINICAL SERVICES,CHURCHILL CONTRACT SERVICES LTD,2046854,10082.3,MAKE READY SERVICES
DEPARTMENT OF HEALTH,SOUTH CENTRAL AMBULANCE NHS FOUNDATION TRUST,20/04/2023,MAKE READY SERVICES,CLINICAL SERVICES,CHURCHILL CONTRACT SERVICES LTD,2046854,12540.67,MAKE READY SERVICES
DEPARTMENT OF HEALTH,SOUTH CENTRAL AMBULANCE NHS FOUNDATION TRUST,20/04/2023,MAKE READY SERVICES,CLINICAL SERVICES,CHURCHILL CONTRACT SERVICES LTD,2046854,7937.48,MAKE READY SERVICES
DEPARTMENT OF HEALTH,SOUTH CENTRAL AMBULANCE NHS FOUNDATION TRUST,20/04/2023,MAKE READY SERVICES,CLINICAL SERVICES,CHURCHILL CONTRACT SERVICES LTD,2046854,9664.15,MAKE READY SERVICES
DEPARTMENT OF HEALTH,SOUTH CENTRAL AMBULANCE NHS FOUNDATION TRUST,20/04/2023,MAKE READY SERVICES,CLINICAL SERVICES,CHURCHILL CONTRACT SERVICES LTD,2046854,48712.78,MAKE READY SERVICES
DEPARTMENT OF HEALTH,SOUTH CENTRAL AMBULANCE NHS FOUNDATION TRUST,20/04/2023,MAKE READY SERVICES,CLINICAL SERVICES,CHURCHILL CONTRACT SERVICES LTD,2046854,9664.15,MAKE READY SERVICES
DEPARTMENT OF HEALTH,SOUTH CENTRAL AMBULANCE NHS FOUNDATION TRUST,20/04/2023,MAKE READY SERVICES,CLINICAL SERVICES,CHURCHILL CONTRACT SERVICES LTD,2046854,17027.86,MAKE READY SERVICES
DEPARTMENT OF HEALTH,SOUTH CENTRAL AMBULANCE NHS FOUNDATION TRUST,20/04/2023,MAKE READY SERVICES,CLINICAL SERVICES,CHURCHILL CONTRACT SERVICES LTD,2046854,9664.15,MAKE READY SERVICES
DEPARTMENT OF HEALTH,SOUTH CENTRAL AMBULANCE NHS FOUNDATION TRUST,20/04/2023,MAKE READY SERVICES,CLINICAL SERVICES,CHURCHILL CONTRACT SERVICES LTD,2046854,10275.5,MAKE READY SERVICES
DEPARTMENT OF HEALTH,SOUTH CENTRAL AMBULANCE NHS FOUNDATION TRUST,20/04/2023,MAKE READY SERVICES,CLINICAL SERVICES,CHURCHILL CONTRACT SERVICES LTD,2046854,25651.58,MAKE READY SERVICES
DEPARTMENT OF HEALTH,SOUTH CENTRAL AMBULANCE NHS FOUNDATION TRUST,20/04/2023,MAKE READY SERVICES,CLINICAL SERVICES,CHURCHILL CONTRACT SERVICES LTD,2046854,321.54,MAKE READY SERVICES
DEPARTMENT OF HEALTH,SOUTH CENTRAL AMBULANCE NHS FOUNDATION TRUST,20/04/2023,MAKE READY SERVICES,CLINICAL SERVICES,CHURCHILL CONTRACT SERVICES LTD,2046854,2764.33,MAKE READY SERVICES
DEPARTMENT OF HEALTH,SOUTH CENTRAL AMBULANCE NHS FOUNDATION TRUST,20/04/2023,MAKE READY SERVICES,CLINICAL SERVICES,CHURCHILL CONTRACT SERVICES LTD,2046854,2870.26,MAKE READY SERVICES
DEPARTMENT OF HEALTH,SOUTH CENTRAL AMBULANCE NHS FOUNDATION TRUST,20/04/2023,GENERAL CONSUMABLES,NON EMERGENCY SERVICES,CHURCHILL CONTRACT SERVICES LTD,2046854,1503.58,MAKE READY SERVICES
DEPARTMENT OF HEALTH,SOUTH CENTRAL AMBULANCE NHS FOUNDATION TRUST,20/04/2023,PTS PRIVATE PROVIDERS,NON EMERGENCY SERVICES,STREAMLINE (KENT) LTD,2046950,37833.62,PP HOURS
DEPARTMENT OF HEALTH,SOUTH CENTRAL AMBULANCE NHS FOUNDATION TRUST,27/04/2023,PTS PRIVATE PROVIDERS,NON EMERGENCY SERVICES,ELITE MEDICAL AND AMBULANCE SERVICE LTD,2046958,43829.8,PP HOURS
DEPARTMENT OF HEALTH,SOUTH CENTRAL AMBULANCE NHS FOUNDATION TRUST,20/04/2023,PROVISION FOR INJURY BENEFIT,CORPORATE,NHS PENSION SCHEME - INJURY BENEFIT,2047920,38919,QUARTERLY INJURY BENEFIT CHARGE
DEPARTMENT OF HEALTH,SOUTH CENTRAL AMBULANCE NHS FOUNDATION TRUST,20/04/2023,PRIVATE AMBULANCE PROVIDERS,OPERATIONS,TOTALMOBILE LTD,2047933,25446.14,CONTRACT SOFTWARE
DEPARTMENT OF HEALTH,SOUTH CENTRAL AMBULANCE NHS FOUNDATION TRUST,20/04/2023,PRIVATE AMBULANCE PROVIDERS,OPERATIONS,TOTALMOBILE LTD,2047933,3958.44,CONTRACT SOFTWARE
DEPARTMENT OF HEALTH,SOUTH CENTRAL AMBULANCE NHS FOUNDATION TRUST,20/04/2023,PRIVATE AMBULANCE PROVIDERS,OPERATIONS,TOTALMOBILE LTD,2047933,2343.84,CONTRACT SOFTWARE
DEPARTMENT OF HEALTH,SOUTH CENTRAL AMBULANCE NHS FOUNDATION TRUST,20/04/2023,PRIVATE AMBULANCE PROVIDERS,OPERATIONS,TOTALMOBILE LTD,2047933,1018.48,CONTRACT SOFTWARE
DEPARTMENT OF HEALTH,SOUTH CENTRAL AMBULANCE NHS FOUNDATION TRUST,20/04/2023,PRIVATE AMBULANCE PROVIDERS,OPERATIONS,TOTALMOBILE LTD,2047933,1869.47,CONTRACT SOFTWARE
DEPARTMENT OF HEALTH,SOUTH CENTRAL AMBULANCE NHS FOUNDATION TRUST,20/04/2023,PRIVATE AMBULANCE PROVIDERS,OPERATIONS,TOTALMOBILE LTD,2047933,6723.3,CONTRACT SOFTWARE
DEPARTMENT OF HEALTH,SOUTH CENTRAL AMBULANCE NHS FOUNDATION TRUST,20/04/2023,PRIVATE AMBULANCE PROVIDERS,OPERATIONS,ELITE EVENT MEDICAL SERVICES LTD,2047997,11542.22,PP HOURS
DEPARTMENT OF HEALTH,SOUTH CENTRAL AMBULANCE NHS FOUNDATION TRUST,20/04/2023,PRIVATE AMBULANCE PROVIDERS,OPERATIONS,ELITE EVENT MEDICAL SERVICES LTD,2047997,34845.32,PP HOURS
DEPARTMENT OF HEALTH,SOUTH CENTRAL AMBULANCE NHS FOUNDATION TRUST,20/04/2023,PRIVATE AMBULANCE PROVIDERS,OPERATIONS,ELITE EVENT MEDICAL SERVICES LTD,2047997,21653.76,PP HOURS
DEPARTMENT OF HEALTH,SOUTH CENTRAL AMBULANCE NHS FOUNDATION TRUST,20/04/2023,PRIVATE AMBULANCE PROVIDERS,OPERATIONS,MEDICARE EMS GROUP UK LTD,2048004,6640.06,PP HOURS
DEPARTMENT OF HEALTH,SOUTH CENTRAL AMBULANCE NHS FOUNDATION TRUST,20/04/2023,PRIVATE AMBULANCE PROVIDERS,OPERATIONS,MEDICARE EMS GROUP UK LTD,2048004,36451.11,PP HOURS
DEPARTMENT OF HEALTH,SOUTH CENTRAL AMBULANCE NHS FOUNDATION TRUST,20/04/2023,PRIVATE AMBULANCE PROVIDERS,OPERATIONS,PHOENIX RESPONSE SERVICES LTD,2048008,39717.36,PP HOURS
DEPARTMENT OF HEALTH,SOUTH CENTRAL AMBULANCE NHS FOUNDATION TRUST,27/04/2023,PTS PRIVATE PROVIDERS,NON EMERGENCY SERVICES,STREAMLINE (KENT) LTD,2048062,38354.74,PP HOURS
DEPARTMENT OF HEALTH,SOUTH CENTRAL AMBULANCE NHS FOUNDATION TRUST,27/04/2023,BUILDING WORKS,"FINANCE, ESTATES AND PROCUREMENT",VISION DESIGN LTD,2048686,108659.63,BUILDING WORKS
DEPARTMENT OF HEALTH,SOUTH CENTRAL AMBULANCE NHS FOUNDATION TRUST,20/04/2023,TEMPS CLINICAL,OPERATIONS,PHL - PARTNERING HEALTH LTD,2048769,571478,URGENT CARE SUB-CONTRACT
DEPARTMENT OF HEALTH,SOUTH CENTRAL AMBULANCE NHS FOUNDATION TRUST,27/04/2023,PTS PRIVATE PROVIDERS,NON EMERGENCY SERVICES,MEDI4 AMBULANCE SERVICES LTD,2051195,28477.88,PP HOURS
DEPARTMENT OF HEALTH,SOUTH CENTRAL AMBULANCE NHS FOUNDATION TRUST,27/04/2023,TEMPS CLINICAL,OPERATIONS,FRIMLEY PRIMARY CARE SERVICE,2051216,647943,URGENT CARE SUB-CONTRACT
DEPARTMENT OF HEALTH,SOUTH CENTRAL AMBULANCE NHS FOUNDATION TRUST,27/04/2023,PTS PRIVATE PROVIDERS,NON EMERGENCY SERVICES,F.A.S.T. AMBULANCE SERVICE LTD,2051229,26959.58,PP HOURS
DEPARTMENT OF HEALTH,SOUTH CENTRAL AMBULANCE NHS FOUNDATION TRUST,27/04/2023,IT,OPERATIONS,ADVANCED,2051291,29962.8,SOFTWARE AND MAINTENANCE
DEPARTMENT OF HEALTH,SOUTH CENTRAL AMBULANCE NHS FOUNDATION TRUST,27/04/2023,TAXI HIRE - PTS,NON EMERGENCY SERVICES,SOUTHERN TAXIS (BRIGHTON) LTD T/A CITY CABS BRIGHTON,2051235,19200,PP HOURS
DEPARTMENT OF HEALTH,SOUTH CENTRAL AMBULANCE NHS FOUNDATION TRUST,27/04/2023,TAXI HIRE - PTS,NON EMERGENCY SERVICES,SOUTHERN TAXIS (BRIGHTON) LTD T/A CITY CABS BRIGHTON,2051235,8693.88,PP HOURS
DEPARTMENT OF HEALTH,SOUTH CENTRAL AMBULANCE NHS FOUNDATION TRUST,27/04/2023,TAXI HIRE - PTS,NON EMERGENCY SERVICES, (WOKING CARS) SA TAXIS LTD,2051236,40680,PP HOURS
DEPARTMENT OF HEALTH,SOUTH CENTRAL AMBULANCE NHS FOUNDATION TRUST,27/04/2023,TAXI HIRE - PTS,NON EMERGENCY SERVICES, (WOKING CARS) SA TAXIS LTD,2051236,6259.27,PP HOURS
DEPARTMENT OF HEALTH,SOUTH CENTRAL AMBULANCE NHS FOUNDATION TRUST,25/04/2023,INSURANCE PREMIUM,OPERATIONS,JLT--QBE-STANDING ORDER,2051295,228614.4,MOTOR FLEET INSURANCE
DEPARTMENT OF HEALTH,SOUTH CENTRAL AMBULANCE NHS FOUNDATION TRUST,25/04/2023,INSURANCE PREMIUM,OPERATIONS,JLT--QBE-STANDING ORDER,2051296,806077.44,MOTOR FLEET INSURANCE
DEPARTMENT OF HEALTH,SOUTH CENTRAL AMBULANCE NHS FOUNDATION TRUST,27/04/2023,PRIVATE AMBULANCE PROVIDERS,OPERATIONS,ENHANCED CARE SERVICES,2051316,8479.29,PP HOURS
DEPARTMENT OF HEALTH,SOUTH CENTRAL AMBULANCE NHS FOUNDATION TRUST,27/04/2023,PRIVATE AMBULANCE PROVIDERS,OPERATIONS,ENHANCED CARE SERVICES,2051316,19014.83,PP HOURS
DEPARTMENT OF HEALTH,SOUTH CENTRAL AMBULANCE NHS FOUNDATION TRUST,27/04/2023,PRIVATE AMBULANCE PROVIDERS,OPERATIONS,SOUTHERN MEDICAL RESCUE,2051317,12553.8,PP HOURS
DEPARTMENT OF HEALTH,SOUTH CENTRAL AMBULANCE NHS FOUNDATION TRUST,27/04/2023,PRIVATE AMBULANCE PROVIDERS,OPERATIONS,SOUTHERN MEDICAL RESCUE,2051317,24055.19,PP HOURS
DEPARTMENT OF HEALTH,SOUTH CENTRAL AMBULANCE NHS FOUNDATION TRUST,27/04/2023,PRIVATE AMBULANCE PROVIDERS,OPERATIONS,POLARIS MEDICAL SERVICES LTD,2051318,38298.92,PP HOURS
DEPARTMENT OF HEALTH,SOUTH CENTRAL AMBULANCE NHS FOUNDATION TRUST,15/04/2023,DIESEL,OPERATIONS,ALLSTAR FUEL CARD SERVICES- DD ONLY,2045755,106635.98,FUEL
DEPARTMENT OF HEALTH,SOUTH CENTRAL AMBULANCE NHS FOUNDATION TRUST,06/04/2023,DIESEL,OPERATIONS,ALLSTAR FUEL CARD SERVICES- DD ONLY,2043238,101788,FUEL
DEPARTMENT OF HEALTH,SOUTH CENTRAL AMBULANCE NHS FOUNDATION TRUST,12/04/2023,CARD EXPENSES,CORPORATE,NATIONAL WESTMINSTER BANK -DIRECT DEBIT,2044358,30040.01,PURCHASE CARD PAYMENTS
DEPARTMENT OF HEALTH,SOUTH CENTRAL AMBULANCE NHS FOUNDATION TRUST,22/04/2023,DIESEL,OPERATIONS,ALLSTAR FUEL CARD SERVICES- DD ONLY,2049895,106384.78,FUEL
DEPARTMENT OF HEALTH,SOUTH CENTRAL AMBULANCE NHS FOUNDATION TRUST,27/04/2023,DIESEL,OPERATIONS,ALLSTAR FUEL CARD SERVICES- DD ONLY,2053428,93489.67,FUEL
DEPARTMENT OF HEALTH,SOUTH CENTRAL AMBULANCE NHS FOUNDATION TRUST,25/04/2023,INSURANCE PREMIUM,OPERATIONS,JLT--QBE-STANDING ORDER,2051397,120565.33,MOTOR FLEET INSURANCE
